[Event "Late-Titled-Tuesday-Blitz-June-25-2024"]
[Site "Chess.com"]
[Date "2024.06.25"]
[Round "8"]
[White "GothamChess"]
[Black "Slovineanu"]
[Result "1-0"]
[WhiteElo "2762"]
[BlackElo "2559"]
[TimeControl "180+1"]
[EndTime "15:26:52 PDT"]
[Termination "GothamChess won by resignation"]

1. e4 {[%clk 0:03:00.9]} 1... c6 {[%clk 0:02:58.4]} 2. Nf3 {[%clk 0:02:59.8]}
2... d5 {[%clk 0:02:58.2]} 3. Nc3 {[%clk 0:03:00.6]} 3... dxe4 {[%clk
0:02:57.5]} 4. Nxe4 {[%clk 0:03:00.9]} 4... Nf6 {[%clk 0:02:57.9]} 5. Qe2 {[%clk
0:03:01.2]} 5... Nxe4 {[%clk 0:02:57.2]} 6. Qxe4 {[%clk 0:03:02.1]} 6... Qd5
{[%clk 0:02:57.5]} 7. Qh4 {[%clk 0:02:51.3]} 7... Qe6+ {[%clk 0:02:43.9]} 8. Be2
{[%clk 0:02:46.4]} 8... Qg4 {[%clk 0:02:39]} 9. Qg3 {[%clk 0:02:43.2]} 9... Qxg3
{[%clk 0:02:38.7]} 10. hxg3 {[%clk 0:02:44.1]} 10... Bf5 {[%clk 0:02:37.1]} 11.
c3 {[%clk 0:02:40.4]} 11... h6 {[%clk 0:02:17.5]} 12. d4 {[%clk 0:02:38.8]}
12... Nd7 {[%clk 0:02:17.1]} 13. Bf4 {[%clk 0:02:33.6]} 13... e6 {[%clk
0:02:15.1]} 14. O-O-O {[%clk 0:02:28.9]} 14... Be7 {[%clk 0:02:12.3]} 15. Rhe1
{[%clk 0:02:19.9]} 15... O-O-O {[%clk 0:02:04.1]} 16. Nd2 {[%clk 0:02:08.3]}
16... g5 {[%clk 0:01:56.2]} 17. Be3 {[%clk 0:02:06.8]} 17... h5 {[%clk
0:01:52.9]} 18. Rh1 {[%clk 0:02:04.4]} 18... h4 {[%clk 0:01:51.7]} 19. g4 {[%clk
0:01:56.3]} 19... Bg6 {[%clk 0:01:50.7]} 20. Nf3 {[%clk 0:01:51.4]} 20... f6
{[%clk 0:01:51]} 21. Bc4 {[%clk 0:01:51.2]} 21... Bf7 {[%clk 0:01:46.7]} 22.
Rde1 {[%clk 0:01:45.3]} 22... Rde8 {[%clk 0:01:40.7]} 23. Bb3 {[%clk 0:01:42.6]}
23... Bd6 {[%clk 0:01:41.1]} 24. Kd1 {[%clk 0:01:35.3]} 24... b5 {[%clk
0:01:36.5]} 25. a4 {[%clk 0:01:31.6]} 25... a6 {[%clk 0:01:36.1]} 26. axb5
{[%clk 0:01:23.5]} 26... axb5 {[%clk 0:01:36]} 27. Nd2 {[%clk 0:01:24.2]} 27...
Bg6 {[%clk 0:01:26.8]} 28. Bc2 {[%clk 0:01:16.2]} 28... Bxc2+ {[%clk 0:01:23.3]}
29. Kxc2 {[%clk 0:01:17.1]} 29... Nb6 {[%clk 0:01:20.7]} 30. Ne4 {[%clk
0:01:12.6]} 30... Be7 {[%clk 0:01:19.4]} 31. f3 {[%clk 0:01:09.4]} 31... Nd5
{[%clk 0:01:14.8]} 32. Bd2 {[%clk 0:01:09.6]} 32... Kd7 {[%clk 0:01:13.3]} 33.
Ra1 {[%clk 0:01:04.5]} 33... Ra8 {[%clk 0:01:10.9]} 34. Nf2 {[%clk 0:01:05]}
34... f5 {[%clk 0:01:03.2]} 35. Nh3 {[%clk 0:01:00]} 35... fxg4 {[%clk
0:00:48.3]} 36. fxg4 {[%clk 0:01:00.9]} 36... Nf6 {[%clk 0:00:47.2]} 37. Nxg5
{[%clk 0:00:53.2]} 37... Nxg4 {[%clk 0:00:47]} 38. Rxa8 {[%clk 0:00:52]} 38...
Rxa8 {[%clk 0:00:44.3]} 39. Rxh4 {[%clk 0:00:52.6]} 39... Nf6 {[%clk 0:00:33.4]}
40. Nf7 {[%clk 0:00:52.2]} 40... Rg8 {[%clk 0:00:28.6]} 41. Ne5+ {[%clk
0:00:49.5]} 41... Kd6 {[%clk 0:00:26.9]} 42. g4 {[%clk 0:00:38.6]} 42... Nd7
{[%clk 0:00:20.5]} 43. Rh7 {[%clk 0:00:31.4]} 43... Bg5 {[%clk 0:00:15.4]} 44.
Nf7+ {[%clk 0:00:25.1]} 1-0

[Event "Late-Titled-Tuesday-Blitz-June-25-2024"]
[Site "Chess.com"]
[Date "2024.06.25"]
[Round "8"]
[White "ChadBiryani"]
[Black "merinasian"]
[Result "0-1"]
[WhiteElo "2503"]
[BlackElo "2411"]
[TimeControl "180+1"]
[EndTime "15:26:56 PDT"]
[Termination "merinasian won by checkmate"]

1. d4 {[%clk 0:02:59.4]} 1... d6 {[%clk 0:02:41.6]} 2. Bg5 {[%clk 0:02:55.1]}
2... Nd7 {[%clk 0:02:40.6]} 3. Nd2 {[%clk 0:02:53.4]} 3... g6 {[%clk 0:02:40.6]}
4. h4 {[%clk 0:02:52.7]} 4... h6 {[%clk 0:02:39.5]} 5. Bf4 {[%clk 0:02:52.7]}
5... Bg7 {[%clk 0:02:40]} 6. e3 {[%clk 0:02:53.1]} 6... c5 {[%clk 0:02:40.1]} 7.
c3 {[%clk 0:02:53.1]} 7... Ngf6 {[%clk 0:02:37.7]} 8. Ngf3 {[%clk 0:02:53.1]}
8... O-O {[%clk 0:02:37]} 9. Be2 {[%clk 0:02:52]} 9... b6 {[%clk 0:02:29.4]} 10.
a4 {[%clk 0:02:51.4]} 10... Bb7 {[%clk 0:02:24.5]} 11. a5 {[%clk 0:02:51.8]}
11... bxa5 {[%clk 0:02:23.8]} 12. Qa4 {[%clk 0:02:51.7]} 12... Nd5 {[%clk
0:02:16.7]} 13. Bg3 {[%clk 0:02:49.3]} 13... cxd4 {[%clk 0:02:16]} 14. exd4
{[%clk 0:02:46.7]} 14... e5 {[%clk 0:02:09.1]} 15. O-O {[%clk 0:02:35.3]} 15...
e4 {[%clk 0:01:57.7]} 16. Nxe4 {[%clk 0:02:26.3]} 16... N5b6 {[%clk 0:01:22.1]}
17. Qxa5 {[%clk 0:02:24.3]} 17... Bxe4 {[%clk 0:01:20.9]} 18. Bxd6 {[%clk
0:02:22.8]} 18... Re8 {[%clk 0:01:20.1]} 19. Rfe1 {[%clk 0:02:20.4]} 19... Nf6
{[%clk 0:01:09]} 20. Be5 {[%clk 0:02:12.4]} 20... Ng4 {[%clk 0:01:08.8]} 21.
Bxg7 {[%clk 0:02:11.1]} 21... Kxg7 {[%clk 0:01:09.7]} 22. Bb5 {[%clk 0:01:43.4]}
22... Bxf3 {[%clk 0:01:06.7]} 23. gxf3 {[%clk 0:01:44.3]} 23... Qxh4 {[%clk
0:01:04.4]} 24. fxg4 {[%clk 0:01:42.4]} 24... Qxg4+ {[%clk 0:01:04.6]} 25. Kf1
{[%clk 0:01:42.5]} 25... Qh3+ {[%clk 0:01:03.3]} 26. Kg1 {[%clk 0:01:42.7]}
26... Qg4+ {[%clk 0:00:54.5]} 27. Kh1 {[%clk 0:01:37.3]} 27... Qh5+ {[%clk
0:00:42.5]} 28. Kg1 {[%clk 0:01:36.7]} 28... Nc4 {[%clk 0:00:39.3]} 29. Bxc4
{[%clk 0:00:41.2]} 29... Rxe1+ {[%clk 0:00:37.9]} 30. Bf1 {[%clk 0:00:39.9]}
30... Qg4+ {[%clk 0:00:35.2]} 31. Kh2 {[%clk 0:00:38.6]} 31... Qh4+ {[%clk
0:00:26.3]} 32. Kg2 {[%clk 0:00:39]} 32... Qg4+ {[%clk 0:00:25.7]} 33. Kh2
{[%clk 0:00:37.2]} 33... Rae8 {[%clk 0:00:24.8]} 34. Qxa7 {[%clk 0:00:14.9]}
34... Qf4+ {[%clk 0:00:22.7]} 35. Kg2 {[%clk 0:00:15.1]} 35... Qe4+ {[%clk
0:00:20.5]} 36. Kh2 {[%clk 0:00:14.2]} 36... Qf3 {[%clk 0:00:20.2]} 37. Kg1
{[%clk 0:00:14.3]} 37... R1e4 {[%clk 0:00:18.9]} 38. Kh2 {[%clk 0:00:01.9]}
38... Rh4+ {[%clk 0:00:18.6]} 39. Kg1 {[%clk 0:00:02.3]} 39... Rh1# {[%clk
0:00:18.6]} 0-1

[Event "Late-Titled-Tuesday-Blitz-June-25-2024"]
[Site "Chess.com"]
[Date "2024.06.25"]
[Round "8"]
[White "KNVB"]
[Black "Winner_7777"]
[Result "0-1"]
[WhiteElo "2666"]
[BlackElo "2530"]
[TimeControl "180+1"]
[EndTime "15:26:59 PDT"]
[Termination "Winner_7777 won by checkmate"]

1. d4 {[%clk 0:03:00.9]} 1... d5 {[%clk 0:03:00]} 2. Bf4 {[%clk 0:03:01.4]} 2...
Nf6 {[%clk 0:02:59.5]} 3. e3 {[%clk 0:03:01.8]} 3... e6 {[%clk 0:02:59.9]} 4.
Nf3 {[%clk 0:03:02.3]} 4... Bd6 {[%clk 0:03:00.4]} 5. Nbd2 {[%clk 0:03:03.2]}
5... O-O {[%clk 0:03:00.4]} 6. Bd3 {[%clk 0:03:00.9]} 6... c5 {[%clk 0:03:00.9]}
7. c3 {[%clk 0:03:01]} 7... Nc6 {[%clk 0:02:59.8]} 8. Bg3 {[%clk 0:03:01.6]}
8... b6 {[%clk 0:02:59.1]} 9. e4 {[%clk 0:03:02]} 9... Be7 {[%clk 0:02:57.6]}
10. e5 {[%clk 0:03:02.4]} 10... Nh5 {[%clk 0:02:58.2]} 11. Ng5 {[%clk
0:03:02.3]} 11... Bxg5 {[%clk 0:02:58.8]} 12. Qxh5 {[%clk 0:03:02.2]} 12... g6
{[%clk 0:02:59.4]} 13. Qe2 {[%clk 0:03:02.8]} 13... cxd4 {[%clk 0:02:59]} 14. h4
{[%clk 0:03:03.5]} 14... Bxd2+ {[%clk 0:02:59.4]} 15. Qxd2 {[%clk 0:03:03.5]}
15... dxc3 {[%clk 0:02:42.7]} 16. bxc3 {[%clk 0:02:52]} 16... Bb7 {[%clk
0:02:39.6]} 17. h5 {[%clk 0:01:48.5]} 17... Qe7 {[%clk 0:01:47.1]} 18. Bh4
{[%clk 0:00:09.4]} 18... Qc7 {[%clk 0:01:45.1]} 19. Bf6 {[%clk 0:00:06.8]} 19...
Nxe5 {[%clk 0:01:37.7]} 20. Qh6 {[%clk 0:00:01.2]} 20... Qxc3+ {[%clk
0:01:36.8]} 21. Kf1 {[%clk 0:00:01]} 21... Qxa1+ {[%clk 0:01:36.7]} 22. Ke2
{[%clk 0:00:01]} 22... Qb2+ {[%clk 0:01:32.1]} 23. Kf1 {[%clk 0:00:01.5]} 23...
Qxf2+ {[%clk 0:01:03.3]} 24. Kxf2 {[%clk 0:00:01.9]} 24... Ng4+ {[%clk 0:01:04]}
25. Kg3 {[%clk 0:00:01.9]} 25... Nxh6 {[%clk 0:01:04.9]} 26. hxg6 {[%clk
0:00:01.7]} 26... fxg6 {[%clk 0:01:04.6]} 27. Be7 {[%clk 0:00:01.4]} 27... Nf5+
{[%clk 0:01:04.8]} 28. Bxf5 {[%clk 0:00:02.1]} 28... Rxf5 {[%clk 0:01:05.6]} 29.
Rc1 {[%clk 0:00:02.1]} 29... Rc8 {[%clk 0:01:05.4]} 30. Re1 {[%clk 0:00:01.9]}
30... Kf7 {[%clk 0:01:04.6]} 31. Ba3 {[%clk 0:00:02.1]} 31... Rc4 {[%clk
0:01:05]} 32. Kh2 {[%clk 0:00:02.2]} 32... Rc2 {[%clk 0:01:04.2]} 33. Rd1 {[%clk
0:00:01]} 33... Rff2 {[%clk 0:01:04.6]} 34. Kg3 {[%clk 0:00:01.1]} 34... Rxg2+
{[%clk 0:01:03.7]} 35. Kf4 {[%clk 0:00:02]} 35... Rxa2 {[%clk 0:01:04.2]} 36.
Bb4 {[%clk 0:00:01.4]} 36... Ra4 {[%clk 0:01:03.7]} 37. Ke5 {[%clk 0:00:01.7]}
37... Rxb4 {[%clk 0:00:58.2]} 38. Kd6 {[%clk 0:00:01.8]} 38... a5 {[%clk
0:00:56.4]} 39. Rf1+ {[%clk 0:00:02]} 39... Ke8 {[%clk 0:00:55.3]} 40. Rc1
{[%clk 0:00:01.1]} 40... Rc4 {[%clk 0:00:54.1]} 41. Re1 {[%clk 0:00:01.5]} 41...
Rc6+ {[%clk 0:00:48.4]} 42. Ke5 {[%clk 0:00:01.9]} 42... Ke7 {[%clk 0:00:45]}
43. Rh1 {[%clk 0:00:01.5]} 43... h5 {[%clk 0:00:43]} 44. Rh4 {[%clk 0:00:02.4]}
44... Rg4 {[%clk 0:00:32.7]} 45. Rh3 {[%clk 0:00:01.3]} 45... Re4# {[%clk
0:00:32.6]} 0-1

[Event "Late-Titled-Tuesday-Blitz-June-25-2024"]
[Site "Chess.com"]
[Date "2024.06.25"]
[Round "8"]
[White "ValeriyGrinev"]
[Black "RandomNoob04"]
[Result "1-0"]
[WhiteElo "2613"]
[BlackElo "2785"]
[TimeControl "180+1"]
[EndTime "15:27:00 PDT"]
[Termination "ValeriyGrinev won by resignation"]

1. d4 {[%clk 0:03:00.9]} 1... Nf6 {[%clk 0:02:58.2]} 2. c4 {[%clk 0:03:00.2]}
2... c5 {[%clk 0:02:58.4]} 3. Nf3 {[%clk 0:02:59.8]} 3... cxd4 {[%clk
0:02:59.3]} 4. Nxd4 {[%clk 0:02:59]} 4... b6 {[%clk 0:03:00]} 5. f3 {[%clk
0:02:57.8]} 5... e6 {[%clk 0:02:59.6]} 6. e4 {[%clk 0:02:58.2]} 6... Bb4+ {[%clk
0:03:00]} 7. Bd2 {[%clk 0:02:57.2]} 7... Bc5 {[%clk 0:03:00]} 8. Be3 {[%clk
0:02:56.6]} 8... O-O {[%clk 0:02:59.1]} 9. Nc3 {[%clk 0:02:55.9]} 9... d5 {[%clk
0:02:58.6]} 10. cxd5 {[%clk 0:02:53.6]} 10... exd5 {[%clk 0:02:59.5]} 11. e5
{[%clk 0:02:53]} 11... Re8 {[%clk 0:02:53.9]} 12. f4 {[%clk 0:02:49.6]} 12...
Ng4 {[%clk 0:02:46.4]} 13. Bg1 {[%clk 0:02:48]} 13... f6 {[%clk 0:02:36.5]} 14.
Qd2 {[%clk 0:02:25.7]} 14... fxe5 {[%clk 0:02:34.6]} 15. fxe5 {[%clk 0:02:26.6]}
15... Rxe5+ {[%clk 0:02:27.4]} 16. Be2 {[%clk 0:02:25.2]} 16... Be7 {[%clk
0:01:50.1]} 17. Nf3 {[%clk 0:02:12.3]} 17... Rh5 {[%clk 0:01:08.8]} 18. O-O-O
{[%clk 0:02:04.3]} 18... Bb7 {[%clk 0:01:08.3]} 19. Kb1 {[%clk 0:01:54.9]} 19...
Nd7 {[%clk 0:01:00.3]} 20. h3 {[%clk 0:01:53.7]} 20... Ngf6 {[%clk 0:01:00.9]}
21. Bd4 {[%clk 0:01:48.4]} 21... Ne4 {[%clk 0:00:51.7]} 22. Qe3 {[%clk 0:01:45]}
22... Nxc3+ {[%clk 0:00:45]} 23. Bxc3 {[%clk 0:01:45.9]} 23... Rh6 {[%clk
0:00:36.2]} 24. Nd4 {[%clk 0:01:39]} 24... Nc5 {[%clk 0:00:29.9]} 25. Bg4 {[%clk
0:01:33]} 25... Ne4 {[%clk 0:00:26.9]} 26. Ne6 {[%clk 0:01:29.2]} 26... Rxe6
{[%clk 0:00:18.7]} 27. Bxe6+ {[%clk 0:01:21.5]} 27... Kh8 {[%clk 0:00:19.2]} 28.
Bd4 {[%clk 0:01:17.2]} 28... Qd6 {[%clk 0:00:17.5]} 29. Bg4 {[%clk 0:01:10.4]}
29... Bg5 {[%clk 0:00:18]} 30. Qd3 {[%clk 0:01:07.3]} 30... a5 {[%clk
0:00:15.8]} 31. Rhe1 {[%clk 0:01:00.2]} 31... Ba6 {[%clk 0:00:14.7]} 32. Qxe4
{[%clk 0:00:59.1]} 32... dxe4 {[%clk 0:00:11.2]} 33. Bxg7+ {[%clk 0:00:58.7]}
33... Kxg7 {[%clk 0:00:12.1]} 34. Rxd6 {[%clk 0:00:56.7]} 34... Bd3+ {[%clk
0:00:13]} 35. Ka1 {[%clk 0:00:55.1]} 35... b5 {[%clk 0:00:13.1]} 36. Rd7+ {[%clk
0:00:53.1]} 36... Kg6 {[%clk 0:00:10.7]} 37. Rd6+ {[%clk 0:00:48.3]} 37... Kg7
{[%clk 0:00:09.9]} 38. Bf5 {[%clk 0:00:45.7]} 38... Re8 {[%clk 0:00:05.4]} 39.
Rxd3 {[%clk 0:00:43.5]} 39... exd3 {[%clk 0:00:01.9]} 40. Rxe8 {[%clk
0:00:41.9]} 40... d2 {[%clk 0:00:02.8]} 41. Bg4 {[%clk 0:00:40.3]} 41... a4
{[%clk 0:00:03.7]} 42. Re6 {[%clk 0:00:36.4]} 42... Bf6 {[%clk 0:00:03.6]} 43.
Kb1 {[%clk 0:00:33.6]} 43... b4 {[%clk 0:00:04]} 44. Rxf6 {[%clk 0:00:31.8]}
44... Kxf6 {[%clk 0:00:03.7]} 45. Kc2 {[%clk 0:00:32.3]} 45... a3 {[%clk
0:00:04.4]} 46. bxa3 {[%clk 0:00:31.4]} 46... b3+ {[%clk 0:00:04.8]} 47. axb3
{[%clk 0:00:30.6]} 1-0

[Event "Late-Titled-Tuesday-Blitz-June-25-2024"]
[Site "Chess.com"]
[Date "2024.06.25"]
[Round "8"]
[White "campochess"]
[Black "Bkmzzzzz"]
[Result "1/2-1/2"]
[WhiteElo "2232"]
[BlackElo "2389"]
[TimeControl "180+1"]
[EndTime "15:27:00 PDT"]
[Termination "Game drawn by repetition"]

1. d4 {[%clk 0:03:00.9]} 1... d5 {[%clk 0:02:57.4]} 2. Bg5 {[%clk 0:03:00.4]}
2... f6 {[%clk 0:02:46.9]} 3. Bd2 {[%clk 0:02:58.9]} 3... e5 {[%clk 0:02:45.2]}
4. e3 {[%clk 0:02:58.5]} 4... e4 {[%clk 0:02:44]} 5. c4 {[%clk 0:02:56.3]} 5...
c6 {[%clk 0:02:43.9]} 6. cxd5 {[%clk 0:02:55.4]} 6... cxd5 {[%clk 0:02:44.8]} 7.
Nc3 {[%clk 0:02:54.8]} 7... Nc6 {[%clk 0:02:44.1]} 8. Qh5+ {[%clk 0:02:53.9]}
8... g6 {[%clk 0:02:33.4]} 9. Qxd5 {[%clk 0:02:53.2]} 9... f5 {[%clk 0:02:15.9]}
10. Bc4 {[%clk 0:02:49.9]} 10... Qxd5 {[%clk 0:02:10.7]} 11. Nxd5 {[%clk
0:02:48.4]} 11... Bd6 {[%clk 0:02:09.3]} 12. Ne2 {[%clk 0:02:44.3]} 12... Bd7
{[%clk 0:02:00.9]} 13. Rc1 {[%clk 0:02:41.9]} 13... O-O-O {[%clk 0:01:55.2]} 14.
O-O {[%clk 0:02:26.6]} 14... Kb8 {[%clk 0:01:54.7]} 15. a3 {[%clk 0:02:24.8]}
15... Be6 {[%clk 0:01:47.6]} 16. Nb4 {[%clk 0:02:19.7]} 16... Bd7 {[%clk
0:01:11.5]} 17. Nxc6+ {[%clk 0:02:14]} 17... Bxc6 {[%clk 0:01:11.1]} 18. Rc3
{[%clk 0:02:10.5]} 18... Nf6 {[%clk 0:01:10.2]} 19. Rfc1 {[%clk 0:02:09.5]}
19... Rhf8 {[%clk 0:01:09]} 20. g3 {[%clk 0:02:06.5]} 20... Nd5 {[%clk
0:01:08.6]} 21. Bxd5 {[%clk 0:02:05.5]} 21... Bxd5 {[%clk 0:01:09.5]} 22. Nf4
{[%clk 0:01:50.5]} 22... Bf7 {[%clk 0:01:06.9]} 23. h4 {[%clk 0:01:41.1]} 23...
Rd7 {[%clk 0:00:56.7]} 24. Nh3 {[%clk 0:01:26.8]} 24... Bd5 {[%clk 0:00:46]} 25.
Nf4 {[%clk 0:01:26]} 25... Bf7 {[%clk 0:00:38]} 26. Re1 {[%clk 0:01:23.5]} 26...
Rfd8 {[%clk 0:00:35.8]} 27. Rcc1 {[%clk 0:01:23.3]} 27... Re8 {[%clk 0:00:34.9]}
28. Bc3 {[%clk 0:01:23.2]} 28... Bxf4 {[%clk 0:00:33.3]} 29. gxf4 {[%clk
0:01:22.3]} 29... Bd5 {[%clk 0:00:32.4]} 30. Kh2 {[%clk 0:01:21.8]} 30... b6
{[%clk 0:00:29.7]} 31. Rg1 {[%clk 0:01:21.1]} 31... Kb7 {[%clk 0:00:30.2]} 32.
h5 {[%clk 0:01:21]} 32... Bf7 {[%clk 0:00:27.5]} 33. Rg5 {[%clk 0:01:18.5]}
33... Rd5 {[%clk 0:00:24.3]} 34. hxg6 {[%clk 0:01:16.3]} 34... Bxg6 {[%clk
0:00:23.6]} 35. Rh1 {[%clk 0:01:15.2]} 35... Re7 {[%clk 0:00:23.2]} 36. Rgg1
{[%clk 0:01:14.1]} 36... Rc7 {[%clk 0:00:23.2]} 37. Kg3 {[%clk 0:01:13.7]} 37...
a5 {[%clk 0:00:22.5]} 38. Rc1 {[%clk 0:01:11.7]} 38... Ka6 {[%clk 0:00:20.3]}
39. Bd2 {[%clk 0:01:11.7]} 39... Rxc1 {[%clk 0:00:19.7]} 40. Rxc1 {[%clk
0:01:10.1]} 40... Kb5 {[%clk 0:00:20.4]} 41. Rc7 {[%clk 0:01:09.1]} 41... Ka4
{[%clk 0:00:20.3]} 42. Bc3 {[%clk 0:01:08.9]} 42... Kb3 {[%clk 0:00:19.5]} 43.
Rc6 {[%clk 0:01:07.3]} 43... b5 {[%clk 0:00:18.4]} 44. Rc5 {[%clk 0:01:07.4]}
44... Rxc5 {[%clk 0:00:16.2]} 45. dxc5 {[%clk 0:01:07.1]} 45... Be8 {[%clk
0:00:17]} 46. Bxa5 {[%clk 0:01:04.3]} 46... Kxb2 {[%clk 0:00:17.4]} 47. Bb4
{[%clk 0:01:03.9]} 47... Kb3 {[%clk 0:00:17.4]} 48. f3 {[%clk 0:01:04.1]} 48...
exf3 {[%clk 0:00:16.2]} 49. Kxf3 {[%clk 0:01:03.5]} 49... Bc6+ {[%clk
0:00:16.2]} 50. Kg3 {[%clk 0:01:01.4]} 50... Kc4 {[%clk 0:00:16.9]} 51. Kh4
{[%clk 0:01:01.2]} 51... Kd3 {[%clk 0:00:17.4]} 52. Kg5 {[%clk 0:01:01.1]} 52...
Kxe3 {[%clk 0:00:17.8]} 53. Kxf5 {[%clk 0:01:00.3]} 53... h5 {[%clk 0:00:18.1]}
54. Kg5 {[%clk 0:01:00.3]} 54... h4 {[%clk 0:00:18.6]} 55. Kxh4 {[%clk
0:00:58.5]} 55... Kxf4 {[%clk 0:00:19.1]} 56. Kh5 {[%clk 0:00:58.6]} 56... Ke4
{[%clk 0:00:19.1]} 57. Kg5 {[%clk 0:00:58.2]} 57... Kd5 {[%clk 0:00:19.8]} 58.
Kf6 {[%clk 0:00:58.2]} 58... Bd7 {[%clk 0:00:20.4]} 59. Ke7 {[%clk 0:00:57.8]}
59... Kc6 {[%clk 0:00:21.1]} 60. Kf6 {[%clk 0:00:56.4]} 60... Bg4 {[%clk
0:00:21]} 61. Ke5 {[%clk 0:00:56.1]} 61... Be2 {[%clk 0:00:21.6]} 62. Kd4 {[%clk
0:00:55.7]} 62... Bf1 {[%clk 0:00:22.3]} 63. Ke5 {[%clk 0:00:55.6]} 63... Be2
{[%clk 0:00:22.5]} 64. Kd4 {[%clk 0:00:55.6]} 64... Bf1 {[%clk 0:00:23.1]} 65.
Ke5 {[%clk 0:00:55.6]} 65... Be2 {[%clk 0:00:23.3]} 1/2-1/2

[Event "Late-Titled-Tuesday-Blitz-June-25-2024"]
[Site "Chess.com"]
[Date "2024.06.25"]
[Round "8"]
[White "Kielinkei"]
[Black "PawnEatingZombie"]
[Result "1-0"]
[WhiteElo "2498"]
[BlackElo "2300"]
[TimeControl "180+1"]
[EndTime "15:27:01 PDT"]
[Termination "Kielinkei won on time"]

1. e4 {[%clk 0:03:00.9]} 1... c5 {[%clk 0:02:59.4]} 2. Nc3 {[%clk 0:02:58.6]}
2... g6 {[%clk 0:02:57.4]} 3. b3 {[%clk 0:02:56.3]} 3... Bg7 {[%clk 0:02:57.2]}
4. Bb2 {[%clk 0:02:56.6]} 4... e5 {[%clk 0:02:54.1]} 5. Nf3 {[%clk 0:02:55.4]}
5... Ne7 {[%clk 0:02:53.3]} 6. Bc4 {[%clk 0:02:49.8]} 6... O-O {[%clk 0:02:52]}
7. O-O {[%clk 0:02:50.2]} 7... Nbc6 {[%clk 0:02:51.8]} 8. Nd5 {[%clk 0:02:47.2]}
8... d6 {[%clk 0:02:49.9]} 9. Nxe7+ {[%clk 0:02:44.3]} 9... Qxe7 {[%clk
0:02:46.8]} 10. a4 {[%clk 0:02:44.7]} 10... Bg4 {[%clk 0:02:37.6]} 11. h3 {[%clk
0:02:44.4]} 11... Bxf3 {[%clk 0:02:30.5]} 12. Qxf3 {[%clk 0:02:45.3]} 12... Nd4
{[%clk 0:02:30.3]} 13. Qd1 {[%clk 0:02:42.5]} 13... a6 {[%clk 0:02:21.9]} 14.
Bxd4 {[%clk 0:02:38.8]} 14... cxd4 {[%clk 0:02:21.1]} 15. a5 {[%clk 0:02:37.6]}
15... Rac8 {[%clk 0:02:20.3]} 16. c3 {[%clk 0:02:32.3]} 16... Kh8 {[%clk
0:02:18.6]} 17. cxd4 {[%clk 0:02:31.6]} 17... exd4 {[%clk 0:02:18.7]} 18. d3
{[%clk 0:02:32.1]} 18... f5 {[%clk 0:02:05.4]} 19. Re1 {[%clk 0:02:27.3]} 19...
fxe4 {[%clk 0:01:59.4]} 20. Rxe4 {[%clk 0:02:27.5]} 20... Qg5 {[%clk 0:01:46.6]}
21. Rg4 {[%clk 0:01:58.5]} 21... Qc5 {[%clk 0:01:41.2]} 22. Qd2 {[%clk
0:01:14.8]} 22... d5 {[%clk 0:01:22.3]} 23. b4 {[%clk 0:01:14]} 23... Qc6 {[%clk
0:01:22.8]} 24. Ba2 {[%clk 0:01:11.8]} 24... Qc3 {[%clk 0:01:18.8]} 25. Rd1
{[%clk 0:01:01.1]} 25... Rf5 {[%clk 0:00:58.6]} 26. g3 {[%clk 0:00:58.4]} 26...
Rc6 {[%clk 0:00:36.6]} 27. Kg2 {[%clk 0:00:53.1]} 27... h5 {[%clk 0:00:30.4]}
28. Rf4 {[%clk 0:00:43.7]} 28... Rxf4 {[%clk 0:00:20.5]} 29. Qxf4 {[%clk
0:00:41.9]} 29... Qxb4 {[%clk 0:00:18.8]} 30. Bxd5 {[%clk 0:00:38.6]} 30... Rc8
{[%clk 0:00:12.5]} 31. Qf7 {[%clk 0:00:30.1]} 31... Kh7 {[%clk 0:00:10.9]} 32.
Be4 {[%clk 0:00:27.1]} 32... Qd6 {[%clk 0:00:07.9]} 33. Qxb7 {[%clk 0:00:24.9]}
33... Rc3 {[%clk 0:00:07.5]} 34. Qb6 {[%clk 0:00:21.9]} 34... Qxb6 {[%clk
0:00:06.6]} 35. axb6 {[%clk 0:00:22.5]} 35... Rb3 {[%clk 0:00:07.3]} 36. b7
{[%clk 0:00:22]} 36... a5 {[%clk 0:00:07]} 37. Ra1 {[%clk 0:00:19.2]} 37... Be5
{[%clk 0:00:04.3]} 38. Rxa5 {[%clk 0:00:19]} 38... Bc7 {[%clk 0:00:03.1]} 39.
Rc5 {[%clk 0:00:17.8]} 1-0

[Event "Late-Titled-Tuesday-Blitz-June-25-2024"]
[Site "Chess.com"]
[Date "2024.06.25"]
[Round "8"]
[White "AryanTari"]
[Black "Arysya"]
[Result "1-0"]
[WhiteElo "3029"]
[BlackElo "2846"]
[TimeControl "180+1"]
[EndTime "15:27:03 PDT"]
[Termination "AryanTari won by resignation"]

1. e4 {[%clk 0:03:00.9]} 1... c5 {[%clk 0:02:59.8]} 2. Nf3 {[%clk 0:02:54.4]}
2... a6 {[%clk 0:02:59.3]} 3. g3 {[%clk 0:02:45]} 3... Nc6 {[%clk 0:02:35.5]} 4.
d4 {[%clk 0:02:36.9]} 4... cxd4 {[%clk 0:02:33.3]} 5. Nxd4 {[%clk 0:02:37.7]}
5... Nf6 {[%clk 0:02:33.2]} 6. Bg2 {[%clk 0:02:36.6]} 6... e5 {[%clk 0:02:32.1]}
7. Nf5 {[%clk 0:02:33.5]} 7... d6 {[%clk 0:02:20.3]} 8. Nc3 {[%clk 0:02:33.1]}
8... Bxf5 {[%clk 0:02:14.3]} 9. exf5 {[%clk 0:02:33.7]} 9... h6 {[%clk
0:02:14.7]} 10. Be3 {[%clk 0:02:31.8]} 10... Be7 {[%clk 0:02:14.3]} 11. g4
{[%clk 0:02:29.4]} 11... Qa5 {[%clk 0:02:09.5]} 12. O-O {[%clk 0:02:13.9]} 12...
O-O {[%clk 0:01:57.3]} 13. h4 {[%clk 0:02:07.3]} 13... Nh7 {[%clk 0:01:57.3]}
14. Nd5 {[%clk 0:01:36.1]} 14... Bxh4 {[%clk 0:01:50]} 15. Bb6 {[%clk
0:01:30.2]} 15... Qa4 {[%clk 0:01:50.4]} 16. b3 {[%clk 0:01:23.8]} 16... Qa3
{[%clk 0:01:50.4]} 17. c3 {[%clk 0:00:59.3]} 17... Rac8 {[%clk 0:01:38.7]} 18.
Qd3 {[%clk 0:00:57.8]} 18... Bg5 {[%clk 0:01:15.1]} 19. Be4 {[%clk 0:00:45.3]}
19... Nf6 {[%clk 0:01:13.2]} 20. Nxf6+ {[%clk 0:00:41.9]} 20... Bxf6 {[%clk
0:01:14.1]} 21. Kg2 {[%clk 0:00:41.5]} 21... Ne7 {[%clk 0:00:44.2]} 22. c4
{[%clk 0:00:35.3]} 22... d5 {[%clk 0:00:44.1]} 23. cxd5 {[%clk 0:00:33.6]} 23...
Qb4 {[%clk 0:00:44.6]} 24. Be3 {[%clk 0:00:32.7]} 24... Rc3 {[%clk 0:00:44.4]}
25. Qb1 {[%clk 0:00:26.9]} 25... Rd8 {[%clk 0:00:24.3]} 26. Rd1 {[%clk
0:00:13.5]} 26... Qb5 {[%clk 0:00:17]} 27. d6 {[%clk 0:00:10.3]} 27... Nc8
{[%clk 0:00:15.7]} 28. Rd5 {[%clk 0:00:09.7]} 28... Qe2 {[%clk 0:00:14.1]} 29.
Bf3 {[%clk 0:00:09.3]} 29... Qc2 {[%clk 0:00:12]} 30. Qxc2 {[%clk 0:00:09.2]}
30... Rxc2 {[%clk 0:00:12.9]} 31. d7 {[%clk 0:00:09.9]} 31... Ne7 {[%clk
0:00:13.3]} 32. Rd6 {[%clk 0:00:07.7]} 32... Rc7 {[%clk 0:00:13.3]} 33. Rad1
{[%clk 0:00:07.4]} 33... Nc6 {[%clk 0:00:08]} 34. Bb6 {[%clk 0:00:07.2]} 34...
Rcxd7 {[%clk 0:00:05.2]} 35. Rxd7 {[%clk 0:00:07.2]} 1-0